bitfinex/quotes_BTCUSD_20260103
["timestamp","ask_amount","ask_price","bid_price","bid_amount"]
[1767440684329,0.02812102,89734.0,89729.0,0.01114466]
[1767440684526,0.01697698,89734.0,89730.0,0.01114454]
[1767440684750,0.01697698,89734.0,89731.0,0.01114442]
[1767440684951,0.01597798,89734.0,89731.0,0.01114442]
[1767440685333,0.01116,89734.0,89730.0,0.01114454]
[1767440685538,0.01116,89734.0,89731.0,0.01114442]
[1767440686995,0.01114379,89736.0,89732.0,0.01114429]
[1767440687216,0.01116,89736.0,89732.0,0.01114429]
[1767440687798,0.01116,89736.0,89733.0,0.0484593]
[1767440687997,0.01116,89737.0,89736.0,0.0484593]
[1767440688226,0.000999,89736.0,89733.0,0.05960347]
[1767440688426,0.06687824,89738.0,89733.0,0.05960347]
[1767440689454,0.02230355,89738.0,89733.0,0.05960347]
[1767440690033,0.01114379,89736.0,89733.0,0.0484593]
[1767440690606,0.01114367,89737.0,89733.0,0.0484593]
[1767440691752,0.01114367,89737.0,89733.0,0.05960347]
[1767440691963,0.01114367,89737.0,89733.0,0.01114417]
[1767440692174,0.04913885,89736.0,89731.0,0.01686608]
[1767440692427,0.04913885,89736.0,89730.0,0.06686682]
[1767440692891,0.04913885,89736.0,89733.0,0.01114417]
[1767440693250,0.01114367,89737.0,89733.0,0.01114417]
[1767440694448,0.06686116,89739.0,89738.0,0.0484593]
[1767440694780,0.01182416,89745.0,89739.0,0.0484593]
[1767440694959,0.01116,89756.0,89746.0,0.0484593]
[1767440695322,0.01114206,89750.0,89745.0,0.0484593]
[1767440695472,0.01114218,89749.0,89744.0,0.0111428]
[1767440695793,0.01114218,89749.0,89742.0,0.01114305]
[1767440696021,0.01114218,89749.0,89745.0,0.0484593]
[1767440696227,0.0111423,89748.0,89745.0,0.0484593]
[1767440696411,0.0111423,89748.0,89744.0,0.0111428]
[1767440696412,0.01114218,89749.0,89744.0,0.0111428]
[1767440697770,0.01114218,89749.0,89745.0,0.0484593]
[1767440699400,0.06685175,89751.0,89750.0,0.0484593]
[1767440700343,0.01114206,89750.0,89745.0,0.05897894]
[1767440700766,0.01114193,89751.0,89747.0,0.04783626]
[1767440700940,0.01114206,89750.0,89747.0,0.04783626]
[1767440701149,0.01114193,89751.0,89747.0,0.04783626]
[1767440702013,0.01114206,89750.0,89747.0,0.04783626]
[1767440702438,0.06685056,89753.0,89750.0,0.000999]
[1767440702922,0.01114144,89755.0,89750.0,0.05897832]
[1767440703364,0.01114144,89755.0,89750.0,0.01114206]
[1767440703959,0.01114156,89754.0,89749.0,0.01114218]
[1767440704191,0.01114156,89754.0,89750.0,0.01114206]
[1767440704358,0.01114156,89754.0,89749.0,0.05897844]
[1767440704511,0.06684837,89756.0,89751.0,0.04783626]
[1767440704724,0.01114094,89759.0,89753.0,0.05897794]
[1767440704982,0.01114094,89759.0,89755.0,0.01114144]
[1767440705820,0.04815619,89757.0,89753.0,0.05570796]
[1767440706018,0.05944485,89758.0,89754.0,0.01114156]
[1767440706217,0.05944485,89758.0,89747.0,0.05571216]
[1767440706423,0.05929763,89755.0,89747.0,0.05571216]
[1767440706835,0.05929763,89755.0,89749.0,0.01114218]
[1767440707262,0.04815619,89755.0,89751.0,0.01114193]
[1767440707656,0.04815619,89755.0,89752.0,0.01114181]
[1767440708057,0.04815619,89755.0,89751.0,0.01114193]
[1767440709346,0.01114119,89757.0,89752.0,0.05897807]
[1767440709551,0.0001476,89758.0,89753.0,0.01114168]
[1767440709771,0.0001476,89758.0,89753.0,0.05897794]
[1767440709970,0.01128866,89758.0,89754.0,0.01114156]
[1767440710211,0.0001476,89758.0,89754.0,0.01114156]
[1767440710486,0.0001476,89758.0,89754.0,0.05897782]
[1767440710866,0.01128866,89758.0,89754.0,0.04783626]
[1767440711078,0.01114119,89757.0,89753.0,0.01114168]
[1767440711488,0.01114131,89756.0,89752.0,0.04783626]
[1767440711688,0.01114131,89756.0,89752.0,0.05897807]
[1767440711859,0.01114119,89757.0,89752.0,0.05897807]
[1767440712505,0.01114131,89756.0,89752.0,0.04783626]
[1767440712824,0.01114119,89757.0,89752.0,0.05897807]
[1767440713217,0.01114119,89757.0,89753.0,0.01114168]
[1767440713534,0.01128866,89758.0,89753.0,0.01066567]
[1767440713725,0.01128866,89758.0,89754.0,0.01114156]
[1767440713868,0.01114094,89759.0,89754.0,0.01114156]
[1767440714294,0.01114081,89760.0,89755.0,0.01114144]
[1767440714733,0.06684584,89759.0,89754.0,0.01114156]
[1767440714943,0.06684584,89759.0,89752.0,0.06685035]
[1767440714944,0.01114119,89757.0,89752.0,0.01114181]
[1767440715495,0.01114119,89757.0,89753.0,0.01114168]
[1767440715824,0.01114119,89757.0,89750.0,0.05570984]
[1767440716361,0.01114119,89757.0,89751.0,0.05570924]
[1767440716763,0.01114119,89757.0,89752.0,0.04783626]
[1767440716968,0.01114119,89757.0,89752.0,0.05897807]
[1767440717380,0.01114144,89755.0,89752.0,0.04783626]
[1767440718125,0.01114131,89756.0,89752.0,0.04783626]
[1767440718528,0.01114144,89755.0,89752.0,0.04783626]
[1767440720443,0.06684908,89755.0,89749.0,0.01116]
[1767440721270,0.01114168,89753.0,89749.0,0.01116]
[1767440721528,0.01114168,89753.0,89747.0,0.02230243]
[1767440721743,0.01114168,89753.0,89747.0,0.01732925]
[1767440721955,0.22282293,89758.0,89739.0,0.01114342]
[1767440722107,0.0557133,89746.0,89740.0,0.04783626]
[1767440722310,0.01114293,89743.0,89739.0,0.01116]
[1767440722717,0.01114268,89745.0,89740.0,0.0111433]
[1767440722922,0.01114255,89746.0,89743.0,0.000999]
[1767440723239,0.01114255,89746.0,89741.0,0.01114317]
[1767440723447,0.01114243,89747.0,89742.0,0.01114305]
[1767440724811,0.01114255,89746.0,89741.0,0.01114317]
[1767440725005,0.01114268,89745.0,89741.0,0.01114317]
[1767440725201,0.01114255,89746.0,89745.0,0.000999]
[1767440725765,0.01114268,89745.0,89740.0,0.0111433]
[1767440726407,0.0111428,89744.0,89739.0,0.02230342]
[1767440726609,0.01114293,89743.0,89739.0,0.01116]
[1767440727164,0.01114305,89742.0,89739.0,0.01116]
[1767440727417,0.06685807,89743.0,89739.0,0.01116]
[1767440727607,0.01685807,89743.0,89739.0,0.01116]
[1767440727764,0.01114305,89742.0,89740.0,0.04783626]
[1767440727968,0.01685807,89743.0,89740.0,0.04783626]
[1767440728306,0.01114305,89742.0,89740.0,0.04783626]
[1767440728916,0.06685872,89742.0,89740.0,0.04783626]
[1767440731426,0.02677497,89742.0,89740.0,0.04783626]
[1767440731630,0.02677497,89742.0,89739.0,0.01116]
[1767440731940,0.03791802,89742.0,89739.0,0.01116]
[1767440732308,0.04632072,89741.0,89739.0,0.01116]
[1767440732511,0.03791802,89742.0,89739.0,0.01116]
[1767440733713,0.01114305,89742.0,89739.0,0.05635381]
[1767440735402,0.04632072,89741.0,89739.0,0.01116]
[1767440735607,0.01114305,89742.0,89739.0,0.01116]
[1767440735608,0.05746377,89742.0,89739.0,0.01116]
[1767440735809,0.05746377,89742.0,89736.0,0.0513086]
[1767440735810,0.01114305,89742.0,89738.0,0.01116]
[1767440736126,0.01114317,89741.0,89738.0,3.39e-05]
[1767440737317,0.05571651,89740.0,89738.0,3.39e-05]
[1767440737571,0.01114317,89741.0,89738.0,3.39e-05]
[1767440737788,0.06685949,89741.0,89738.0,3.39e-05]
[1767440738392,0.06685949,89741.0,89738.0,0.04522771]
[1767440738774,0.0337182,89742.0,89739.0,0.04519381]
[1767440738974,0.0337182,89742.0,89739.0,0.04419481]
[1767440739516,0.06685949,89741.0,89739.0,0.04419481]
[1767440740305,0.01014417,89741.0,89739.0,0.04419481]
[1767440741519,0.01114305,89742.0,89739.0,0.04419481]
[1767440742275,0.01114305,89742.0,89738.0,3.39e-05]
[1767440742611,0.01114293,89743.0,89738.0,0.01117745]
[1767440742834,0.0111428,89744.0,89739.0,0.01114342]
[1767440743168,0.01114305,89742.0,89738.0,3.39e-05]
[1767440743360,0.01114317,89741.0,89739.0,0.04519381]
[1767440743737,0.06685739,89744.0,89739.0,0.04519381]
[1767440743907,0.01114305,89742.0,89739.0,0.04519381]
[1767440744303,0.01114293,89743.0,89739.0,0.05633723]
[1767440744528,0.0111428,89744.0,89739.0,0.05633723]
[1767440744980,0.01114293,89743.0,89738.0,0.01117745]
[1767440745503,0.01114293,89743.0,89738.0,0.05637126]
[1767440745831,0.01114293,89743.0,89737.0,0.0668616]
[1767440745832,0.04632072,89742.0,89737.0,0.0668616]
[1767440746182,0.01114293,89743.0,89737.0,0.0668616]
[1767440746384,0.01114305,89742.0,89737.0,0.01114367]
[1767440746913,0.05746377,89742.0,89737.0,0.01114367]
[1767440747184,0.05746377,89742.0,89736.0,0.02800596]
[1767440747365,0.05746389,89741.0,89736.0,0.01114379]
[1767440748387,0.01114317,89741.0,89736.0,0.01114379]
[1767440748543,0.01114305,89742.0,89741.0,0.04519381]
[1767440748770,0.06685805,89743.0,89741.0,0.04419481]
[1767440749780,0.01114305,89742.0,89741.0,0.04419481]
[1767440750821,0.01114293,89743.0,89741.0,0.04419481]
[1767440751003,0.01114293,89743.0,89742.0,0.000999]
[1767440751205,0.01114293,89743.0,89741.0,0.04419481]
[1767440752241,0.0111428,89744.0,89741.0,0.04419481]
[1767440752423,0.04632072,89743.0,89740.0,0.0111433]
[1767440753146,0.0111428,89744.0,89740.0,0.0111433]
[1767440753975,0.0111428,89744.0,89740.0,0.05633711]
[1767440754779,0.01162416,89745.0,89741.0,0.05633698]
[1767440755975,0.05794488,89745.0,89741.0,0.01114317]
[1767440756178,0.01162416,89745.0,89741.0,0.01114317]
[1767440756682,0.0111428,89744.0,89739.0,0.01114342]
[1767440757618,0.01114293,89743.0,89738.0,0.01114355]
[1767440758036,0.01114293,89743.0,89739.0,0.04519381]
[1767440760277,0.00048148,89745.0,89741.0,0.04829575]
[1767440760488,0.01114181,89752.0,89746.0,0.0594383]
[1767440760729,0.04779727,89753.0,89749.0,0.01114218]
[1767440760923,0.04779727,89753.0,89747.0,0.05571179]
[1767440761075,0.04779727,89753.0,89746.0,0.06685491]
[1767440761076,0.04779727,89751.0,89746.0,0.06685491]
[1767440761453,0.04779727,89751.0,89747.0,0.01085693]
[1767440762856,0.04779727,89751.0,89748.0,0.0111423]
[1767440763057,0.01114168,89753.0,89748.0,0.0111423]
[1767440763285,0.01114168,89753.0,89749.0,0.04829575]
[1767440763686,0.05570898,89753.0,89749.0,0.04829575]
[1767440764338,0.01114168,89753.0,89749.0,0.04829575]
[1767440765797,0.01114181,89752.0,89749.0,0.04829575]
[1767440766291,0.01114181,89752.0,89747.0,0.01114243]
[1767440767745,0.01114193,89751.0,89746.0,0.01028597]
[1767440767925,0.01114181,89752.0,89747.0,0.01114243]
[1767440769325,0.01114206,89750.0,89745.0,0.01114268]
[1767440769599,0.06685161,89751.0,89746.0,0.04829575]
[1767440769750,0.01685161,89751.0,89745.0,0.01114268]
[1767440770378,0.01114206,89750.0,89745.0,0.05298484]
[1767440771350,0.05571092,89749.0,89745.0,0.04184216]
[1767440771556,0.0111423,89748.0,89745.0,0.04184216]
[1767440772113,0.01114206,89750.0,89746.0,0.04184216]
[1767440772266,0.01114206,89750.0,89746.0,0.05298471]
[1767440772478,0.01114206,89750.0,89746.0,0.01114255]
[1767440772675,0.05893933,89750.0,89745.0,0.01114268]
[1767440773312,0.01114218,89749.0,89744.0,0.0668564]
[1767440773538,0.04779727,89748.0,89744.0,0.0111428]
[1767440773669,0.04779727,89748.0,89745.0,0.01114268]
[1767440773880,0.04679827,89748.0,89745.0,0.01114268]
[1767440774585,0.01114206,89750.0,89746.0,0.01114255]
[1767440774792,0.01114206,89750.0,89746.0,0.0594383]
[1767440775050,0.01114181,89752.0,89746.0,0.0594383]
[1767440775832,0.01114206,89750.0,89746.0,0.0594383]
[1767440776138,0.04779727,89749.0,89744.0,0.0168564]
[1767440776436,0.01114218,89749.0,89744.0,0.0111428]
[1767440776732,0.01114218,89749.0,89745.0,0.01114268]
[1767440779943,0.01685282,89750.0,89746.0,0.04729675]
[1767440780168,0.06685179,89751.0,89746.0,0.04729675]
[1767440780349,0.01114218,89749.0,89746.0,0.04729675]
[1767440780685,0.06685352,89749.0,89746.0,0.04729675]
[1767440781961,0.01114218,89749.0,89746.0,0.04729675]
[1767440782418,0.01114218,89749.0,89744.0,0.0111428]
[1767440782635,0.01114218,89749.0,89745.0,0.01114268]
[1767440783376,0.11465009,89750.0,89749.0,0.000999]
[1767440783578,0.05893945,89749.0,89745.0,0.01114268]
[1767440784410,0.0111423,89748.0,89743.0,0.01114293]
[1767440785007,0.0111423,89748.0,89744.0,0.0111428]
[1767440785227,0.01114218,89749.0,89745.0,0.01114268]
[1767440785608,0.06685282,89750.0,89745.0,0.01114268]
[1767440785778,0.06685282,89750.0,89745.0,0.05943843]
[1767440785928,0.06685282,89750.0,89745.0,0.01114268]
[1767440786328,0.11465009,89750.0,89745.0,0.01114268]
[1767440786781,0.01114181,89752.0,89750.0,0.000999]
[1767440786930,0.05893908,89752.0,89750.0,0.000999]
[1767440787132,0.05893908,89752.0,89747.0,0.01114243]
[1767440787888,0.01114181,89752.0,89748.0,0.0111423]
[1767440788543,0.01114193,89751.0,89746.0,0.01114255]
[1767440788955,0.01114193,89751.0,89747.0,0.01114243]
[1767440791103,0.01114193,89751.0,89746.0,0.01114255]
[1767440792212,0.01114206,89750.0,89745.0,0.01114268]
[1767440792432,0.01114243,89747.0,89743.0,0.01114293]
[1767440792626,0.01114243,89747.0,89741.0,0.01162466]
[1767440792769,0.01114243,89747.0,89742.0,0.01114305]
[1767440792968,0.0111423,89748.0,89746.0,0.046034]
[1767440793174,0.06685429,89748.0,89746.0,0.046034]
[1767440793395,0.01685558,89746.0,89741.0,0.00048149]
[1767440793615,0.01114268,89745.0,89742.0,0.046034]
[1767440794459,0.01114255,89746.0,89742.0,0.046034]
[1767440794660,0.01114255,89746.0,89742.0,0.05717705]
[1767440794863,0.01114255,89746.0,89742.0,0.046034]
[1767440795391,0.01114268,89745.0,89742.0,0.046034]
[1767440796151,0.04567879,89745.0,89739.0,0.06686005]
[1767440796371,0.01114255,89746.0,89742.0,0.01114305]
[1767440796540,0.0111423,89748.0,89742.0,0.01114305]
[1767440796737,0.0111423,89748.0,89740.0,0.05571593]
[1767440796738,0.04567879,89747.0,89740.0,0.05571593]
[1767440796954,0.04567879,89747.0,89744.0,0.0111428]
[1767440797956,0.04467979,89747.0,89744.0,0.0111428]
[1767440798150,0.01114218,89749.0,89744.0,0.0111428]
[1767440798634,0.01114218,89749.0,89745.0,0.01114268]
[1767440799506,0.01114206,89750.0,89746.0,0.01114255]
[1767440800070,0.05682085,89750.0,89744.0,0.02799881]
[1767440800412,0.01114218,89749.0,89745.0,0.046034]
[1767440800559,0.01114206,89750.0,89745.0,0.046034]
[1767440801256,0.0111423,89748.0,89745.0,0.046034]
[1767440802579,0.0111423,89748.0,89743.0,0.01114293]
[1767440802719,0.05571135,89749.0,89744.0,0.046034]
[1767440803333,0.01114243,89747.0,89744.0,0.046034]
[1767440803581,0.0111423,89748.0,89744.0,0.0571768]
[1767440804285,0.06685353,89749.0,89744.0,0.0571768]
[1767440804484,0.01114218,89749.0,89745.0,0.01114268]
[1767440805287,0.01114206,89750.0,89745.0,0.01114268]
[1767440805494,0.01114206,89750.0,89746.0,0.01114255]
[1767440805697,0.01114193,89751.0,89746.0,0.01114255]
[1767440806080,0.04567879,89749.0,89744.0,0.06685639]
[1767440806277,0.04567879,89749.0,89744.0,0.01685639]
[1767440806477,0.01114206,89750.0,89743.0,0.03768013]
[1767440806908,0.01114193,89751.0,89746.0,0.01114255]
[1767440807603,0.01114193,89751.0,89744.0,0.05571359]
[1767440807918,0.01114206,89750.0,89747.0,0.046034]
[1767440808099,0.01114193,89751.0,89750.0,0.046034]
[1767440808299,0.01114193,89751.0,89750.0,0.045035]
[1767440811253,0.01114218,89749.0,89744.0,0.0111428]
[1767440811776,0.01114218,89749.0,89744.0,0.01014442]
[1767440812373,0.01114206,89750.0,89745.0,0.01114268]
[1767440812563,0.01114206,89750.0,89747.0,0.046034]
[1767440812776,0.06685214,89751.0,89750.0,0.046034]
[1767440816176,0.01114206,89750.0,89746.0,0.01114255]
[1767440816623,0.01114193,89751.0,89746.0,0.01114255]
[1767440817654,0.01114206,89750.0,89746.0,0.01114255]
[1767440817819,0.01114206,89750.0,89747.0,0.046034]
[1767440818018,0.01114193,89751.0,89750.0,0.046034]
[1767440818224,0.06685132,89752.0,89750.0,0.046034]
[1767440819835,0.01114193,89751.0,89750.0,0.046034]
[1767440820226,0.01114193,89751.0,89750.0,0.03851852]
[1767440821422,0.01114193,89751.0,89750.0,0.03751952]
[1767440822194,0.01114193,89751.0,89747.0,0.01114243]
[1767440822522,0.01114193,89751.0,89746.0,0.01114255]
[1767440823044,0.01114193,89751.0,89746.0,0.05890198]
[1767440824231,0.05208359,89750.0,89744.0,0.06585806]
[1767440825116,0.01114218,89749.0,89744.0,0.01014442]
[1767440825825,0.01114218,89749.0,89745.0,0.01114268]
[1767440826023,0.01114218,89749.0,89744.0,0.0111428]
[1767440826488,0.01114218,89749.0,89745.0,0.01114268]
[1767440827820,0.01114206,89750.0,89745.0,0.01114268]
[1767440828715,0.01114193,89751.0,89746.0,0.01114255]
[1767440828890,0.01114181,89752.0,89747.0,0.01114243]
[1767440830301,0.01114193,89751.0,89747.0,0.01114243]
[1767440831757,0.05570894,89753.0,89752.0,0.04775943]
[1767440831897,0.06684991,89754.0,89748.0,0.04775943]
[1767440832300,0.01114181,89752.0,89748.0,0.04775943]
[1767440832725,0.01114193,89751.0,89748.0,0.04775943]
[1767440833049,0.01114168,89753.0,89748.0,0.05890173]
[1767440833255,0.01114168,89753.0,89751.0,0.000999]
[1767440833673,0.01114193,89751.0,89748.0,0.04775943]
[1767440834367,0.01114193,89751.0,89748.0,0.04024377]
[1767440836022,0.01114181,89752.0,89747.0,0.01114243]
[1767440836221,0.05723337,89752.0,89747.0,0.01114243]
[1767440836482,0.01114181,89752.0,89747.0,0.01114243]
[1767440836650,0.01114206,89750.0,89746.0,0.01114255]
[1767440836838,0.0668513,89752.0,89746.0,0.01114255]
[1767440836839,0.0668513,89752.0,89747.0,0.04775943]
[1767440837038,0.01114206,89750.0,89747.0,0.04775943]
[1767440838174,0.01114206,89750.0,89746.0,0.01114255]
[1767440838678,0.01114218,89749.0,89745.0,0.05890211]
[1767440838879,0.01114206,89750.0,89745.0,0.05890211]
[1767440839081,0.01114193,89751.0,89746.0,0.01114255]
[1767440839334,0.01114206,89750.0,89745.0,0.05890211]
[1767440840369,0.01114206,89750.0,89746.0,0.01114255]
[1767440840987,0.01114206,89750.0,89745.0,0.05890211]
[1767440840988,0.01114218,89749.0,89745.0,0.05890211]
[1767440842637,0.01114193,89751.0,89747.0,0.01114243]
[1767440844957,0.06684989,89754.0,89748.0,0.0111423]
[1767440845277,0.01114156,89754.0,89750.0,0.01114206]
[1767440845908,0.0668491,89755.0,89750.0,0.01114206]
[1767440846118,0.057233,89755.0,89750.0,0.01114206]
[1767440846328,0.01114144,89755.0,89748.0,0.04775943]
[1767440846493,0.01114144,89755.0,89747.0,0.04484912]
[1767440846731,0.01114119,89757.0,89749.0,0.03497025]
[1767440847096,0.02822393,89758.0,89753.0,0.01114168]
[1767440847520,0.01114119,89757.0,89752.0,0.05420633]
[1767440848037,0.02822393,89758.0,89753.0,0.01114168]
[1767440848247,0.01114119,89757.0,89753.0,0.01114168]
[1767440848564,0.01708287,89758.0,89757.0,0.000999]
[1767440848695,0.01114119,89757.0,89753.0,0.01114168]
[1767440848899,0.01114119,89757.0,89752.0,0.01114181]
[1767440850176,0.0487032,89759.0,89758.0,0.04686058]
[1767440850380,0.0487032,89759.0,89758.0,0.03850321]
[1767440850783,0.01114119,89757.0,89753.0,0.05800226]
[1767440851959,0.01114119,89757.0,89753.0,0.04686058]
[1767440852174,0.01114131,89756.0,89753.0,0.04686058]
[1767440853170,0.01114156,89754.0,89750.0,0.04686058]
[1767440853370,0.01114168,89753.0,89750.0,0.04686058]
[1767440855875,0.06684917,89755.0,89750.0,0.05800264]
[1767440856292,0.01114144,89755.0,89750.0,0.01114206]
[1767440856702,0.01114156,89754.0,89751.0,0.04686058]
[1767440856932,0.01114144,89755.0,89751.0,0.04686058]
[1767440858015,0.06684938,89754.0,89751.0,0.04686058]
[1767440858347,0.01114168,89753.0,89749.0,0.01114218]
[1767440859590,0.01114144,89755.0,89750.0,0.01114206]
[1767440860271,0.01114144,89755.0,89751.0,0.01114193]
[1767440860832,0.01114168,89753.0,89748.0,0.0111423]
[1767440861779,0.01114144,89755.0,89748.0,0.0111423]
[1767440861780,0.01114144,89755.0,89750.0,0.01114206]
[1767440861915,0.01114144,89755.0,89751.0,0.04686058]
[1767440862317,0.01114131,89756.0,89751.0,0.05800251]
[1767440862674,0.01114144,89755.0,89751.0,0.05800251]
[1767440862881,0.01114144,89755.0,89751.0,0.04686058]
[1767440863052,0.01114144,89755.0,89751.0,0.05800251]
[1767440864075,0.01114156,89754.0,89751.0,0.04686058]
[1767440864379,0.01114144,89755.0,89751.0,0.04686058]
[1767440864925,0.22281839,89760.0,89750.0,0.01114206]
[1767440864926,0.05570453,89760.0,89755.0,0.04785958]
[1767440865120,0.01114094,89759.0,89755.0,0.000999]
[1767440865340,0.01114081,89760.0,89755.0,0.01114144]
[1767440866288,0.05686039,89759.0,89754.0,0.01114156]
[1767440866485,0.05686039,89759.0,89752.0,0.06685034]
[1767440866646,0.01114094,89759.0,89755.0,0.05800202]
[1767440866848,0.02798563,89761.0,89755.0,0.05800202]
[1767440867104,0.01114081,89760.0,89755.0,0.05800202]
[1767440868515,0.02798563,89761.0,89757.0,0.03857366]
[1767440868714,0.06686325,89762.0,89757.0,0.03857366]
[1767440869456,0.01114069,89761.0,89757.0,0.03857366]
[1767440871262,0.05570392,89761.0,89757.0,0.03857366]
[1767440871646,0.01114069,89761.0,89757.0,0.03857366]
[1767440871962,0.01114081,89760.0,89757.0,0.03857366]
[1767440872167,0.01014181,89760.0,89757.0,0.03857366]
[1767440876805,0.01014181,89760.0,89754.0,0.01114156]
[1767440877022,0.01014181,89760.0,89753.0,0.06684969]
[1767440877253,0.01014181,89760.0,89754.0,0.05800214]
[1767440877476,0.02342343,89758.0,89753.0,0.01114168]
[1767440877618,0.01114094,89759.0,89754.0,0.01114156]
[1767440877830,0.01014181,89760.0,89754.0,0.01114156]
[1767440878048,0.01014181,89760.0,89755.0,0.04686058]
[1767440878452,0.06684475,89761.0,89755.0,0.05800202]
[1767440878834,0.01114081,89760.0,89755.0,0.05800202]
[1767440879487,0.01114106,89758.0,89755.0,0.04686058]
[1767440879694,0.06684527,89760.0,89754.0,0.01114156]
[1767440880259,0.05570507,89759.0,89753.0,0.01114168]
[1767440880485,0.01114094,89759.0,89754.0,0.01114156]
[1767440880694,0.01114094,89759.0,89754.0,0.05650674]
[1767440881053,0.01114081,89760.0,89756.0,0.04536518]
[1767440881393,0.01114081,89760.0,89756.0,0.05650649]
[1767440881596,0.06684475,89761.0,89756.0,0.05650649]
[1767440882012,0.01114081,89760.0,89756.0,0.04536518]
[1767440882210,0.01114069,89761.0,89756.0,0.05650649]
[1767440882413,0.01114069,89761.0,89758.0,0.04536518]
[1767440883623,0.05570409,89760.0,89758.0,0.04436618]
[1767440883822,0.01114069,89761.0,89758.0,0.04436618]
[1767440884030,0.01114069,89761.0,89755.0,0.01114144]
[1767440884237,0.01114069,89761.0,89741.0,0.22286118]
[1767440884238,0.01114131,89756.0,89749.0,0.01114218]
[1767440884482,0.22281801,89760.0,89740.0,0.5178899]
[1767440884483,0.51784353,89760.0,89740.0,0.04536518]
[1767440884711,0.05571893,89737.0,89735.0,0.10726186]
[1767440884947,0.01114355,89738.0,89733.0,0.04536518]
[1767440884948,0.01114379,89736.0,89733.0,0.04536518]
[1767440885095,0.06686335,89736.0,89733.0,0.04536518]
[1767440885298,0.06686245,89737.0,89733.0,0.04536518]
[1767440885511,0.01114379,89736.0,89733.0,0.04536518]
[1767440886211,0.00835669,89765.0,89745.0,0.04201918]
[1767440886418,0.01114305,89742.0,89737.0,0.01114367]
[1767440886629,0.0407056,89744.0,89742.0,0.00117291]
[1767440886840,0.04579015,89743.0,89742.0,0.00117291]
[1767440887062,0.0434058,89743.0,89741.0,0.00048149]
[1767440887261,0.04829732,89744.0,89741.0,0.00048149]
[1767440889426,0.05571508,89743.0,89741.0,0.00048149]
[1767440890214,0.01114342,89739.0,89734.0,0.01114404]
[1767440891046,0.01114367,89737.0,89732.0,0.02230429]
[1767440891240,0.01114342,89739.0,89733.0,0.01114417]
[1767440891639,0.01114355,89738.0,89733.0,0.01114417]
[1767440891836,0.01114367,89737.0,89732.0,0.02230429]
[1767440892045,0.05571882,89737.0,89733.0,0.01116]
[1767440892266,0.01114379,89736.0,89733.0,0.01116]
[1767440892891,0.06686317,89736.0,89733.0,0.01116]
[1767440893182,0.05571961,89735.0,89733.0,0.01116]
[1767440893606,0.01114379,89736.0,89727.0,0.0001476]
[1767440893607,0.05570735,89730.0,89729.0,0.01116]
[1767440893735,0.01114429,89732.0,89729.0,0.01116]
[1767440893936,0.05572251,89731.0,89729.0,0.01116]
[1767440894333,0.01114491,89727.0,89724.0,0.16580344]
[1767440894592,0.01114491,89727.0,89721.0,0.01114566]
[1767440894593,0.06686993,89727.0,89720.0,0.06767096]
[1767440894807,0.01114504,89726.0,89720.0,0.02230578]
[1767440895156,0.01114516,89725.0,89721.0,0.05651084]
[1767440895588,0.01114504,89726.0,89725.0,0.000999]
[1767440895965,0.01114516,89725.0,89720.0,0.01116]
[1767440896172,0.01114516,89725.0,89720.0,0.02230578]
[1767440896725,0.01114529,89724.0,89720.0,0.01116]
[1767440897210,0.01114529,89724.0,89720.0,0.02230578]
[1767440897903,0.01114516,89725.0,89720.0,0.02230578]
[1767440898049,0.01114516,89725.0,89724.0,0.000999]
[1767440898472,0.01114516,89725.0,89721.0,0.01114566]
[1767440898669,0.01114516,89725.0,89720.0,0.02230578]
[1767440899666,0.0668708,89726.0,89725.0,0.04536518]
[1767440899829,0.01114504,89726.0,89725.0,0.04536518]
[1767440900030,0.05572391,89729.0,89726.0,0.000999]
[1767440900289,0.05572391,89729.0,89723.0,0.04536518]
[1767440900970,0.01114479,89728.0,89723.0,0.05651059]
[1767440901195,0.01114454,89730.0,89725.0,0.04536518]
[1767440901482,0.01114193,89751.0,89739.0,0.01114342]
[1767440901632,0.0111423,89748.0,89740.0,0.0111433]
[1767440901977,0.01114243,89747.0,89741.0,0.01114317]
[1767440902413,0.01114218,89749.0,89743.0,0.01114293]
[1767440902617,0.0111423,89748.0,89743.0,0.01114293]
[1767440904265,0.01114218,89749.0,89744.0,0.0111428]
[1767440904462,0.01114206,89750.0,89745.0,0.01114268]
[1767440905007,0.01114181,89752.0,89746.0,0.01114255]
[1767440905214,0.05693196,89752.0,89743.0,0.0669653]
[1767440905501,0.000999,89746.0,89744.0,0.06685637]
[1767440905888,0.01114193,89751.0,89746.0,0.01114255]
[1767440906254,0.01114206,89750.0,89745.0,0.01114268]
[1767440906453,0.01114193,89751.0,89745.0,0.01114268]
[1767440908288,0.01114193,89751.0,89746.0,0.01114255]
[1767440908481,0.05693196,89752.0,89746.0,0.01114255]
[1767440909123,0.05693196,89752.0,89747.0,0.01114243]
[1767440910332,0.0002,89755.0,89752.0,0.06685038]
[1767440910531,0.0002,89755.0,89752.0,0.01114181]
[1767440910696,0.0002,89755.0,89753.0,0.05570844]
[1767440911725,0.000999,89753.0,89752.0,0.01114181]
[1767440912153,0.0002,89755.0,89752.0,0.01114181]
[1767440912352,0.0002,89755.0,89751.0,0.01114193]
[1767440913586,0.0002,89755.0,89752.0,0.01114181]
[1767440915000,0.0002,89755.0,89751.0,0.01114193]
[1767440915583,0.01114156,89754.0,89748.0,0.0111423]
[1767440915766,0.04999855,89750.0,89745.0,0.01114268]
[1767440915968,0.04999855,89746.0,89743.0,0.00010779]
[1767440916212,0.0611411,89746.0,89743.0,0.00010779]
[1767440916427,0.04999855,89746.0,89743.0,0.00010779]
[1767440916590,0.01114243,89747.0,89743.0,0.00010779]
[1767440917014,0.06114098,89747.0,89743.0,0.00010779]
[1767440917326,0.04999855,89747.0,89743.0,0.01125072]
[1767440917937,0.06114098,89747.0,89743.0,0.00010779]
[1767440919505,0.04999855,89747.0,89743.0,0.01125072]
[1767440920194,0.0611411,89746.0,89743.0,0.00010779]
[1767440920401,0.01114255,89746.0,89739.0,0.0396284]
[1767440920598,0.04999855,89745.0,89734.0,0.01116]
[1767440920829,0.06150071,89745.0,89737.0,0.0509585]
[1767440921146,0.01114342,89739.0,89734.0,0.01116]
[1767440921514,0.01114367,89737.0,89731.0,0.01114442]
[1767440921711,0.01114355,89738.0,89733.0,0.01114417]
[1767440921911,0.01114355,89738.0,89732.0,0.05703385]
[1767440921912,0.01114367,89737.0,89732.0,0.05703385]
[1767440922614,0.01114379,89736.0,89732.0,0.04588956]
[1767440922783,0.01114355,89738.0,89733.0,0.01114417]
[1767440923549,0.06686104,89739.0,89734.0,0.0570336]
[1767440923777,0.01114355,89738.0,89734.0,0.0570336]
[1767440923979,0.05571837,89737.0,89730.0,0.01114454]
[1767440924361,0.01114379,89736.0,89730.0,0.01114454]
[1767440924561,0.01114367,89737.0,89732.0,0.01114429]
[1767440925143,0.01114379,89736.0,89731.0,0.05703398]
[1767440925366,0.01114379,89736.0,89731.0,0.04588956]
[1767440925608,0.01114367,89737.0,89732.0,0.01114429]
[1767440925829,0.01114379,89736.0,89731.0,0.05703398]
[1767440928142,0.01114367,89737.0,89731.0,0.05703398]